[Event "Titled Tuesday Blitz November 07 Late 2023"]
[White "Osmonbekov, Talaibek"]
[Black "Yushko, Olga"]
[WhiteFideId "2017253"]
[BlackFideId "14114500"]
[WhiteElo "2296"]
[BlackElo "2109"]
[Result "1-0"]
[Round "6"]
[TimeControl "180+1"]
[Date "2023.11.07"]
[WhiteClock "0:01:15"]
[BlackClock "0:01:57"]
[Board "129"]

1. d4 {[%clk 0:03:00]}  e6 {[%clk 0:02:59]} 2. Nc3 {[%clk 0:03:01]}  d5 {[%clk 0:02:57]} 3. Bf4 {[%clk 0:03:02]}  Nf6 {[%clk 0:02:57]} 4. e3 {[%clk 0:03:02]}  Be7 {[%clk 0:02:58]} 5. Nf3 {[%clk 0:03:02]}  O-O {[%clk 0:02:58]} 6. Bd3 {[%clk 0:02:56]}  c5 {[%clk 0:02:59]} 7. dxc5 {[%clk 0:02:56]}  Bxc5 {[%clk 0:02:59]} 8. O-O {[%clk 0:02:57]}  Nc6 {[%clk 0:02:59]} 9. e4 {[%clk 0:02:57]}  dxe4 {[%clk 0:02:58]} 10. Nxe4 {[%clk 0:02:57]}  Nxe4 {[%clk 0:02:58]} 11. Bxe4 {[%clk 0:02:58]}  Qf6 {[%clk 0:02:52]} 12. Qc1 {[%clk 0:02:57]}  e5 {[%clk 0:02:48]} 13. Bg5 {[%clk 0:02:36]}  Qd6 {[%clk 0:02:47]} 14. Rd1 {[%clk 0:02:34]}  Qc7 {[%clk 0:02:47]} 15. c3 {[%clk 0:02:32]}  f5 {[%clk 0:02:46]} 16. Bd5+ {[%clk 0:02:31]}  Kh8 {[%clk 0:02:45]} 17. b4 {[%clk 0:02:30]}  Bb6 {[%clk 0:02:41]} 18. a3 {[%clk 0:02:17]}  e4 {[%clk 0:02:41]} 19. Bf4 {[%clk 0:02:11]}  Qe7 {[%clk 0:02:31]} 20. Bxc6 {[%clk 0:02:01]}  bxc6 {[%clk 0:02:32]} 21. Bd6 {[%clk 0:02:01]}  Qf6 {[%clk 0:02:21]} 22. Bxf8 {[%clk 0:01:43]}  exf3 {[%clk 0:02:21]} 23. Bc5 {[%clk 0:01:37]}  Bc7 {[%clk 0:02:15]} 24. Qe3 {[%clk 0:01:28]}  Be6 {[%clk 0:02:04]} 25. Qxf3 {[%clk 0:01:26]}  Bd5 {[%clk 0:02:03]} 26. Rxd5 {[%clk 0:01:21]}  cxd5 {[%clk 0:02:02]} 27. Qxd5 {[%clk 0:01:22]}  Qxc3 {[%clk 0:01:57]} 28. Qxa8+ {[%clk 0:01:15]} 1-0


[Site "https://www.chess.com"]

[Event "Titled Tuesday Blitz November 07 Late 2023"]
[White "Desideri, Ricardo Maruchi"]
[Black "De Souza, Cristiano Gomes"]
[WhiteFideId "2110440"]
[BlackFideId "2151758"]
[WhiteElo "2006"]
[BlackElo "2278"]
[Result "0-1"]
[Round "6"]
[TimeControl "180+1"]
[Date "2023.11.07"]
[WhiteClock "0:00:01"]
[BlackClock "0:01:22"]
[Board "132"]

1. e4 {[%clk 0:03:00]}  c5 {[%clk 0:02:59]} 2. Nf3 {[%clk 0:02:56]}  d6 {[%clk 0:02:59]} 3. d4 {[%clk 0:02:55]}  cxd4 {[%clk 0:02:59]} 4. Nxd4 {[%clk 0:02:55]}  Nf6 {[%clk 0:03:00]} 5. Nc3 {[%clk 0:02:54]}  g6 {[%clk 0:02:57]} 6. Be3 {[%clk 0:02:52]}  Bg7 {[%clk 0:02:57]} 7. h4 {[%clk 0:02:46]}  h5 {[%clk 0:02:56]} 8. f3 {[%clk 0:02:44]}  O-O {[%clk 0:02:54]} 9. Bc4 {[%clk 0:02:45]}  Nc6 {[%clk 0:02:54]} 10. Qd2 {[%clk 0:02:43]}  a5 {[%clk 0:02:52]} 11. O-O-O {[%clk 0:02:42]}  a4 {[%clk 0:02:50]} 12. a3 {[%clk 0:02:41]}  Qa5 {[%clk 0:02:49]} 13. g4 {[%clk 0:02:35]}  Bd7 {[%clk 0:02:45]} 14. Rdg1 {[%clk 0:02:02]}  Rfc8 {[%clk 0:02:30]} 15. Ba2 {[%clk 0:01:56]}  Ne5 {[%clk 0:02:23]} 16. gxh5 {[%clk 0:01:55]}  Nxh5 {[%clk 0:02:23]} 17. Bh6 {[%clk 0:01:49]}  Rxc3 {[%clk 0:02:12]} 18. Qxc3 {[%clk 0:01:44]}  Qxc3 {[%clk 0:02:12]} 19. bxc3 {[%clk 0:01:42]}  Bxh6+ {[%clk 0:02:12]} 20. Kb1 {[%clk 0:01:41]}  Kh7 {[%clk 0:02:07]} 21. Bd5 {[%clk 0:01:03]}  Bc6 {[%clk 0:02:02]} 22. Ba2 {[%clk 0:00:54]}  Nxf3 {[%clk 0:01:44]} 23. Nxf3 {[%clk 0:00:51]}  Bxe4 {[%clk 0:01:42]} 24. Ng5+ {[%clk 0:00:49]}  Bxg5 {[%clk 0:01:42]} 25. hxg5 {[%clk 0:00:49]}  Bxh1 {[%clk 0:01:42]} 26. Rxh1 {[%clk 0:00:49]}  Kg7 {[%clk 0:01:42]} 27. Rf1 {[%clk 0:00:45]}  Rf8 {[%clk 0:01:36]} 28. Kc1 {[%clk 0:00:40]}  Ng3 {[%clk 0:01:35]} 29. Rf3 {[%clk 0:00:39]}  Ne4 {[%clk 0:01:34]} 30. Kd1 {[%clk 0:00:35]}  Nxg5 {[%clk 0:01:32]} 31. Rg3 {[%clk 0:00:31]}  Ne4 {[%clk 0:01:31]} 32. Rf3 {[%clk 0:00:28]}  f5 {[%clk 0:01:31]} 33. Ke2 {[%clk 0:00:25]}  Rc8 {[%clk 0:01:30]} 34. c4 {[%clk 0:00:16]}  d5 {[%clk 0:01:24]} 35. Kd3 {[%clk 0:00:09]}  dxc4+ {[%clk 0:01:22]} 36. Bxc4 {[%clk 0:00:01]}  Rxc4 {[%clk 0:01:22]} 0-1


[Site "https://www.chess.com"]

[Event "Titled Tuesday Blitz November 07 Late 2023"]
[White "Molina, Jessica"]
[Black "Dodaro, Mattia"]
[WhiteFideId "3303888"]
[BlackFideId "28583400"]
[WhiteElo "1995"]
[BlackElo "2256"]
[Result "0-1"]
[Round "6"]
[TimeControl "180+1"]
[Date "2023.11.07"]
[WhiteClock "0:01:50"]
[BlackClock "0:02:23"]
[Board "133"]

1. d4 {[%clk 0:03:00]}  a6 {[%clk 0:03:00]} 2. Nf3 {[%clk 0:03:00]}  b5 {[%clk 0:03:00]} 3. Bf4 {[%clk 0:02:59]}  Bb7 {[%clk 0:03:01]} 4. e3 {[%clk 0:02:59]}  Nf6 {[%clk 0:03:01]} 5. Be2 {[%clk 0:02:57]}  g6 {[%clk 0:03:02]} 6. O-O {[%clk 0:02:57]}  Bg7 {[%clk 0:03:02]} 7. c4 {[%clk 0:02:57]}  bxc4 {[%clk 0:03:00]} 8. Bxc4 {[%clk 0:02:56]}  O-O {[%clk 0:03:01]} 9. Nc3 {[%clk 0:02:56]}  d6 {[%clk 0:03:01]} 10. Rc1 {[%clk 0:02:55]}  Nbd7 {[%clk 0:03:01]} 11. Qc2 {[%clk 0:02:45]}  c5 {[%clk 0:03:00]} 12. Be2 {[%clk 0:02:41]}  Rc8 {[%clk 0:02:58]} 13. Qd2 {[%clk 0:02:39]}  Qb6 {[%clk 0:02:58]} 14. b3 {[%clk 0:02:31]}  cxd4 {[%clk 0:02:48]} 15. Nxd4 {[%clk 0:02:30]}  e5 {[%clk 0:02:47]} 16. Na4 {[%clk 0:02:16]}  Qa7 {[%clk 0:02:37]} 17. Nf3 {[%clk 0:02:08]}  exf4 {[%clk 0:02:34]} 18. exf4 {[%clk 0:02:08]}  Ne4 {[%clk 0:02:29]} 19. Qd3 {[%clk 0:02:04]}  Rxc1 {[%clk 0:02:26]} 20. Rxc1 {[%clk 0:02:03]}  Nxf2 {[%clk 0:02:26]} 21. Qb1 {[%clk 0:01:54]}  Nh3+ {[%clk 0:02:24]} 22. Kh1 {[%clk 0:01:50]}  Qg1+ {[%clk 0:02:23]} 0-1


[Site "https://www.chess.com"]

[Event "Titled Tuesday Blitz November 07 Late 2023"]
[White "Freeeeeeeeeeeeeeeeee"]
[Black "Milosevic, Milos"]
[BlackFideId "964875"]
[WhiteElo "2019"]
[BlackElo "2496"]
[Result "0-1"]
[Round "6"]
[TimeControl "180+1"]
[Date "2023.11.07"]
[WhiteClock "0:00:00"]
[BlackClock "0:00:13"]
[Board "136"]

1. e4 {[%clk 0:02:44]}  g6 {[%clk 0:03:00]} 2. d3 {[%clk 0:02:41]}  Bg7 {[%clk 0:03:01]} 3. Nc3 {[%clk 0:02:42]}  c5 {[%clk 0:03:01]} 4. g3 {[%clk 0:02:40]}  Nc6 {[%clk 0:03:02]} 5. Bg2 {[%clk 0:02:41]}  d6 {[%clk 0:03:02]} 6. Nge2 {[%clk 0:02:41]}  Bd7 {[%clk 0:03:03]} 7. O-O {[%clk 0:02:42]}  Qc8 {[%clk 0:03:03]} 8. Be3 {[%clk 0:02:39]}  h5 {[%clk 0:03:04]} 9. h4 {[%clk 0:02:38]}  Bh3 {[%clk 0:03:00]} 10. d4 {[%clk 0:02:35]}  cxd4 {[%clk 0:02:59]} 11. Nxd4 {[%clk 0:02:36]}  Nf6 {[%clk 0:02:58]} 12. f3 {[%clk 0:02:24]}  Ne5 {[%clk 0:02:56]} 13. Qe1 {[%clk 0:02:00]}  Nc4 {[%clk 0:02:53]} 14. Bc1 {[%clk 0:01:59]}  Bd7 {[%clk 0:02:23]} 15. b3 {[%clk 0:01:56]}  Qc5 {[%clk 0:02:21]} 16. bxc4 {[%clk 0:01:18]}  Qxd4+ {[%clk 0:02:18]} 17. Be3 {[%clk 0:01:16]}  Qxc4 {[%clk 0:02:17]} 18. Rb1 {[%clk 0:01:15]}  Ng4 {[%clk 0:02:09]} 19. Bd2 {[%clk 0:01:06]}  Rc8 {[%clk 0:02:01]} 20. fxg4 {[%clk 0:00:57]}  Bxc3 {[%clk 0:01:56]} 21. Bxc3 {[%clk 0:00:54]}  Qxc3 {[%clk 0:01:57]} 22. Qf2 {[%clk 0:00:51]}  Be6 {[%clk 0:01:51]} 23. gxh5 {[%clk 0:00:39]}  gxh5 {[%clk 0:01:33]} 24. Rxb7 {[%clk 0:00:36]}  Rg8 {[%clk 0:01:31]} 25. Qxa7 {[%clk 0:00:04]}  Rxg3 {[%clk 0:00:38]} 26. Rxe7+ {[%clk 0:00:04]}  Kd8 {[%clk 0:00:39]} 27. Rf2 {[%clk 0:00:02]}  Qc5 {[%clk 0:00:17]} 28. Qxc5 {[%clk 0:00:02]}  Rxc5 {[%clk 0:00:18]} 29. Ra7 {[%clk 0:00:02]}  Rg4 {[%clk 0:00:15]} 30. Kh2 {[%clk 0:00:02]}  Rxh4+ {[%clk 0:00:16]} 31. Kg3 {[%clk 0:00:02]}  Rg4+ {[%clk 0:00:16]} 32. Kh2 {[%clk 0:00:02]}  Rc3 {[%clk 0:00:15]} 33. Ra8+ {[%clk 0:00:01]}  Kc7 {[%clk 0:00:15]} 34. Rf3 {[%clk 0:00:02]}  Rxc2 {[%clk 0:00:14]} 35. Ra7+ {[%clk 0:00:00]}  Kb6 {[%clk 0:00:13]} 0-1


[Site "https://www.chess.com"]

[Event "Titled Tuesday Blitz November 07 Late 2023"]
[White "Feliz Dotel, Dewar Bienvenido"]
[Black "Burke, Paul"]
[WhiteFideId "6402801"]
[BlackFideId "2605767"]
[WhiteElo "2144"]
[BlackElo "1875"]
[Result "1-0"]
[Round "6"]
[TimeControl "180+1"]
[Date "2023.11.07"]
[WhiteClock "0:00:30"]
[BlackClock "0:00:00"]
[Board "139"]

1. d4 {[%clk 0:02:59]}  a6 {[%clk 0:02:58]} 2. e3 {[%clk 0:02:57]}  d6 {[%clk 0:02:58]} 3. Nf3 {[%clk 0:02:57]}  g6 {[%clk 0:02:58]} 4. Be2 {[%clk 0:02:57]}  h6 {[%clk 0:02:58]} 5. b4 {[%clk 0:02:57]}  Bg7 {[%clk 0:02:58]} 6. Bb2 {[%clk 0:02:56]}  Nd7 {[%clk 0:02:58]} 7. c4 {[%clk 0:02:56]}  e6 {[%clk 0:02:57]} 8. Nc3 {[%clk 0:02:56]}  Ne7 {[%clk 0:02:56]} 9. O-O {[%clk 0:02:56]}  O-O {[%clk 0:02:57]} 10. Qb3 {[%clk 0:02:55]}  Kh7 {[%clk 0:02:55]} 11. a4 {[%clk 0:02:55]}  e5 {[%clk 0:02:49]} 12. Rfe1 {[%clk 0:02:51]}  f5 {[%clk 0:02:48]} 13. dxe5 {[%clk 0:02:47]}  dxe5 {[%clk 0:02:47]} 14. Rad1 {[%clk 0:02:46]}  Qe8 {[%clk 0:02:45]} 15. c5 {[%clk 0:02:45]}  c6 {[%clk 0:02:43]} 16. Nb1 {[%clk 0:02:39]}  Nd5 {[%clk 0:02:25]} 17. Nc3 {[%clk 0:02:33]}  N5f6 {[%clk 0:02:22]} 18. Nd2 {[%clk 0:02:29]}  e4 {[%clk 0:02:22]} 19. Nc4 {[%clk 0:02:27]}  Qf7 {[%clk 0:02:07]} 20. Qa3 {[%clk 0:02:16]}  g5 {[%clk 0:01:37]} 21. Nd6 {[%clk 0:02:01]}  Qg6 {[%clk 0:01:36]} 22. Qa1 {[%clk 0:01:55]}  Ne5 {[%clk 0:01:28]} 23. b5 {[%clk 0:01:33]}  axb5 {[%clk 0:01:26]} 24. Ncxb5 {[%clk 0:01:32]}  cxb5 {[%clk 0:01:13]} 25. Bxe5 {[%clk 0:01:31]}  Rxa4 {[%clk 0:01:12]} 26. Qb2 {[%clk 0:01:28]}  Be6 {[%clk 0:01:01]} 27. Bxb5 {[%clk 0:01:27]}  Ra2 {[%clk 0:01:01]} 28. Qb1 {[%clk 0:01:25]}  Qh5 {[%clk 0:00:56]} 29. Bc4 {[%clk 0:01:05]}  Bxc4 {[%clk 0:00:35]} 30. Nxc4 {[%clk 0:01:06]}  Rfa8 {[%clk 0:00:32]} 31. Bxf6 {[%clk 0:00:59]}  Bxf6 {[%clk 0:00:31]} 32. Qxb7+ {[%clk 0:00:57]}  Bg7 {[%clk 0:00:30]} 33. Rd7 {[%clk 0:00:54]}  Rg8 {[%clk 0:00:27]} 34. Qd5 {[%clk 0:00:42]}  Qh4 {[%clk 0:00:10]} 35. Qxf5+ {[%clk 0:00:36]}  Kh8 {[%clk 0:00:04]} 36. g3 {[%clk 0:00:36]}  Qh5 {[%clk 0:00:03]} 37. Ne5 {[%clk 0:00:31]}  Rf8 {[%clk 0:00:00]} 38. Ng6+ {[%clk 0:00:30]} 1-0


[Site "https://www.chess.com"]

[Event "Titled Tuesday Blitz November 07 Late 2023"]
[White "Nihal Sarin"]
[Black "Bortnyk, Olexandr"]
[WhiteFideId "25092340"]
[BlackFideId "14120828"]
[WhiteElo "3113"]
[BlackElo "3043"]
[Result "1/2-1/2"]
[Round "7"]
[TimeControl "180+1"]
[Date "2023.11.07"]
[WhiteClock "0:00:12"]
[BlackClock "0:00:08"]
[Board "2"]

1. c4 {[%clk 0:03:00]}  Nf6 {[%clk 0:02:58]} 2. Nf3 {[%clk 0:02:58]}  g6 {[%clk 0:02:59]} 3. b3 {[%clk 0:02:57]}  Bg7 {[%clk 0:02:59]} 4. Bb2 {[%clk 0:02:58]}  O-O {[%clk 0:02:59]} 5. g3 {[%clk 0:02:58]}  c6 {[%clk 0:02:54]} 6. Bg2 {[%clk 0:02:57]}  d5 {[%clk 0:02:55]} 7. O-O {[%clk 0:02:58]}  a5 {[%clk 0:02:55]} 8. Nc3 {[%clk 0:02:57]}  Na6 {[%clk 0:02:52]} 9. cxd5 {[%clk 0:02:53]}  cxd5 {[%clk 0:02:53]} 10. Rc1 {[%clk 0:02:49]}  Ne4 {[%clk 0:02:37]} 11. Na4 {[%clk 0:02:43]}  Bd7 {[%clk 0:02:18]} 12. Bxg7 {[%clk 0:02:41]}  Kxg7 {[%clk 0:02:19]} 13. d3 {[%clk 0:02:41]}  Bxa4 {[%clk 0:02:15]} 14. dxe4 {[%clk 0:02:01]}  dxe4 {[%clk 0:02:16]} 15. Qd4+ {[%clk 0:02:00]}  Qxd4 {[%clk 0:01:54]} 16. Nxd4 {[%clk 0:02:01]}  Rfd8 {[%clk 0:01:46]} 17. e3 {[%clk 0:01:56]}  e5 {[%clk 0:01:30]} 18. Ne6+ {[%clk 0:01:56]}  fxe6 {[%clk 0:01:31]} 19. bxa4 {[%clk 0:01:56]}  Rac8 {[%clk 0:01:32]} 20. Rxc8 {[%clk 0:01:13]}  Rxc8 {[%clk 0:01:33]} 21. Bxe4 {[%clk 0:01:14]}  Nc5 {[%clk 0:01:33]} 22. Bc2 {[%clk 0:01:14]}  Kf6 {[%clk 0:01:25]} 23. Rb1 {[%clk 0:01:13]}  Rc6 {[%clk 0:01:25]} 24. Kg2 {[%clk 0:01:04]}  Rd6 {[%clk 0:01:17]} 25. Rd1 {[%clk 0:00:55]}  Rxd1 {[%clk 0:01:17]} 26. Bxd1 {[%clk 0:00:55]}  e4 {[%clk 0:01:09]} 27. h4 {[%clk 0:00:54]}  h6 {[%clk 0:01:07]} 28. f4 {[%clk 0:00:34]}  exf3+ {[%clk 0:01:08]} 29. Kxf3 {[%clk 0:00:35]}  g5 {[%clk 0:00:54]} 30. Bc2 {[%clk 0:00:32]}  h5 {[%clk 0:00:43]} 31. hxg5+ {[%clk 0:00:27]}  Kxg5 {[%clk 0:00:44]} 32. Kg2 {[%clk 0:00:23]}  h4 {[%clk 0:00:40]} 33. gxh4+ {[%clk 0:00:20]}  Kxh4 {[%clk 0:00:41]} 34. Kf3 {[%clk 0:00:21]}  Kg5 {[%clk 0:00:38]} 35. Ke2 {[%clk 0:00:22]}  Kf6 {[%clk 0:00:34]} 36. Kd2 {[%clk 0:00:22]}  Ke5 {[%clk 0:00:35]} 37. Kc3 {[%clk 0:00:22]}  Kd5 {[%clk 0:00:28]} 38. Bd1 {[%clk 0:00:16]}  Ne4+ {[%clk 0:00:28]} 39. Kb3 {[%clk 0:00:12]}  Kc5 {[%clk 0:00:17]} 40. Bc2 {[%clk 0:00:07]}  Nd2+ {[%clk 0:00:14]} 41. Kc3 {[%clk 0:00:08]}  Nc4 {[%clk 0:00:15]} 42. Bb3 {[%clk 0:00:08]}  Nxe3 {[%clk 0:00:10]} 43. Bxe6 {[%clk 0:00:09]}  Nd5+ {[%clk 0:00:07]} 44. Bxd5 {[%clk 0:00:10]}  Kxd5 {[%clk 0:00:08]} 45. Kd3 {[%clk 0:00:10]}  Kc5 {[%clk 0:00:08]} 46. Kc3 {[%clk 0:00:11]}  Kd5 {[%clk 0:00:07]} 47. Kd3 {[%clk 0:00:11]}  Kc5 {[%clk 0:00:08]} 48. Kc3 {[%clk 0:00:12]}  Kd5 {[%clk 0:00:08]} 1/2-1/2


[Site "https://www.chess.com"]

[Event "Titled Tuesday Blitz November 07 Late 2023"]
[White "Hakobyan, Aram"]
[Black "Zhigalko, Sergei"]
[WhiteFideId "13306677"]
[BlackFideId "13502956"]
[WhiteElo "3060"]
[BlackElo "2910"]
[Result "1-0"]
[Round "7"]
[TimeControl "180+1"]
[Date "2023.11.07"]
[WhiteClock "0:00:10"]
[BlackClock "0:00:07"]
[Board "6"]

1. d4 {[%clk 0:03:00]}  Nf6 {[%clk 0:03:00]} 2. c4 {[%clk 0:03:01]}  e6 {[%clk 0:03:00]} 3. Nc3 {[%clk 0:03:02]}  Bb4 {[%clk 0:03:00]} 4. e3 {[%clk 0:03:03]}  O-O {[%clk 0:03:00]} 5. a3 {[%clk 0:03:03]}  Bxc3+ {[%clk 0:03:00]} 6. bxc3 {[%clk 0:03:04]}  c5 {[%clk 0:02:55]} 7. Ne2 {[%clk 0:03:05]}  Nc6 {[%clk 0:02:49]} 8. Ng3 {[%clk 0:03:05]}  d5 {[%clk 0:02:33]} 9. cxd5 {[%clk 0:03:03]}  exd5 {[%clk 0:02:27]} 10. Bd3 {[%clk 0:03:02]}  Re8 {[%clk 0:02:23]} 11. O-O {[%clk 0:03:02]}  Ne4 {[%clk 0:02:20]} 12. Qc2 {[%clk 0:02:49]}  Qh4 {[%clk 0:02:16]} 13. c4 {[%clk 0:02:19]}  Re6 {[%clk 0:01:44]} 14. Nf5 {[%clk 0:01:33]}  Qd8 {[%clk 0:01:32]} 15. f3 {[%clk 0:01:17]}  Nf6 {[%clk 0:00:38]} 16. cxd5 {[%clk 0:01:15]}  Qxd5 {[%clk 0:00:18]} 17. e4 {[%clk 0:00:57]}  Qd8 {[%clk 0:00:18]} 18. d5 {[%clk 0:00:57]}  Nxd5 {[%clk 0:00:18]} 19. exd5 {[%clk 0:00:57]}  Qxd5 {[%clk 0:00:18]} 20. Bc4 {[%clk 0:00:50]}  Nd4 {[%clk 0:00:02]} 21. Bxd5 {[%clk 0:00:16]}  Nxc2 {[%clk 0:00:03]} 22. Bxe6 {[%clk 0:00:12]}  Bxe6 {[%clk 0:00:02]} 23. Ne7+ {[%clk 0:00:09]}  Kf8 {[%clk 0:00:03]} 24. Rb1 {[%clk 0:00:09]}  Kxe7 {[%clk 0:00:02]} 25. Rxb7+ {[%clk 0:00:10]}  Kf6 {[%clk 0:00:03]} 26. Bb2+ {[%clk 0:00:06]}  Kg6 {[%clk 0:00:03]} 27. Rc1 {[%clk 0:00:07]}  Ne3 {[%clk 0:00:02]} 28. Rxc5 {[%clk 0:00:04]}  Rd8 {[%clk 0:00:03]} 29. h4 {[%clk 0:00:04]}  h6 {[%clk 0:00:02]} 30. h5+ {[%clk 0:00:04]}  Kh7 {[%clk 0:00:03]} 31. Re5 {[%clk 0:00:03]}  Nc4 {[%clk 0:00:02]} 32. Rxe6 {[%clk 0:00:03]}  fxe6 {[%clk 0:00:02]} 33. Rxg7+ {[%clk 0:00:04]}  Kh8 {[%clk 0:00:02]} 34. Rd7+ {[%clk 0:00:04]}  Nxb2 {[%clk 0:00:03]} 35. Rxd8+ {[%clk 0:00:05]}  Kg7 {[%clk 0:00:04]} 36. Rd7+ {[%clk 0:00:05]}  Kf6 {[%clk 0:00:05]} 37. Rxa7 {[%clk 0:00:06]}  Nc4 {[%clk 0:00:04]} 38. a4 {[%clk 0:00:07]}  Nb6 {[%clk 0:00:04]} 39. a5 {[%clk 0:00:07]}  Nd5 {[%clk 0:00:04]} 40. a6 {[%clk 0:00:07]}  Nb4 {[%clk 0:00:04]} 41. Ra8 {[%clk 0:00:08]}  Nc6 {[%clk 0:00:04]} 42. Rc8 {[%clk 0:00:07]}  Na7 {[%clk 0:00:03]} 43. Rc7 {[%clk 0:00:07]}  Nb5 {[%clk 0:00:04]} 44. Rb7 {[%clk 0:00:08]}  Nd6 {[%clk 0:00:04]} 45. Rb8 {[%clk 0:00:08]}  Ke5 {[%clk 0:00:04]} 46. a7 {[%clk 0:00:09]}  Nf5 {[%clk 0:00:04]} 47. a8=Q {[%clk 0:00:10]}  Kf6 {[%clk 0:00:04]} 48. Qa1+ {[%clk 0:00:11]}  e5 {[%clk 0:00:05]} 49. Rb6+ {[%clk 0:00:11]}  Kg5 {[%clk 0:00:06]} 50. Qxe5 {[%clk 0:00:10]}  Kh4 {[%clk 0:00:06]} 51. Qxf5 {[%clk 0:00:10]}  Kg3 {[%clk 0:00:07]} 52. Qg4# {[%clk 0:00:10]} 1-0


[Site "https://www.chess.com"]

[Event "Titled Tuesday Blitz November 07 Late 2023"]
[White "Sarana, Alexey"]
[Black "BardArtem"]
[WhiteFideId "24133795"]
[WhiteElo "2976"]
[BlackElo "2779"]
[Result "1-0"]
[Round "7"]
[TimeControl "180+1"]
[Date "2023.11.07"]
[WhiteClock "0:02:26"]
[BlackClock "0:00:37"]
[Board "11"]

1. d4 {[%clk 0:03:00]}  d5 {[%clk 0:02:59]} 2. c4 {[%clk 0:03:01]}  c6 {[%clk 0:02:57]} 3. Nc3 {[%clk 0:03:02]}  Nf6 {[%clk 0:02:57]} 4. Nf3 {[%clk 0:03:02]}  dxc4 {[%clk 0:02:55]} 5. a4 {[%clk 0:03:02]}  e6 {[%clk 0:02:55]} 6. e3 {[%clk 0:03:01]}  c5 {[%clk 0:02:56]} 7. Bxc4 {[%clk 0:03:01]}  Nc6 {[%clk 0:02:56]} 8. O-O {[%clk 0:03:01]}  cxd4 {[%clk 0:02:57]} 9. exd4 {[%clk 0:03:01]}  Be7 {[%clk 0:02:57]} 10. Qe2 {[%clk 0:02:59]}  O-O {[%clk 0:02:57]} 11. Rd1 {[%clk 0:02:59]}  Nb4 {[%clk 0:02:56]} 12. Ne5 {[%clk 0:02:58]}  b6 {[%clk 0:02:53]} 13. Bg5 {[%clk 0:02:57]}  h6 {[%clk 0:02:53]} 14. Bxf6 {[%clk 0:02:56]}  Bxf6 {[%clk 0:02:54]} 15. Ne4 {[%clk 0:02:57]}  Bb7 {[%clk 0:02:51]} 16. Nxf6+ {[%clk 0:02:56]}  Qxf6 {[%clk 0:02:45]} 17. Nd7 {[%clk 0:02:50]}  Qg6 {[%clk 0:02:42]} 18. d5 {[%clk 0:02:48]}  Rfd8 {[%clk 0:02:05]} 19. Ne5 {[%clk 0:02:47]}  Qg5 {[%clk 0:01:48]} 20. h4 {[%clk 0:02:46]}  Qf5 {[%clk 0:01:21]} 21. dxe6 {[%clk 0:02:36]}  fxe6 {[%clk 0:01:22]} 22. Nc6 {[%clk 0:02:32]}  Rxd1+ {[%clk 0:00:40]} 23. Rxd1 {[%clk 0:02:31]}  Qc2 {[%clk 0:00:37]} 24. Nxb4 {[%clk 0:02:26]} 1-0


[Site "https://www.chess.com"]

[Event "Titled Tuesday Blitz November 07 Late 2023"]
[White "Rostovtsev, Dmitry"]
[Black "Krzyzanowski, Marcin"]
[WhiteFideId "34278320"]
[BlackFideId "1132199"]
[WhiteElo "2939"]
[BlackElo "2776"]
[Result "1-0"]
[Round "7"]
[TimeControl "180+1"]
[Date "2023.11.07"]
[WhiteClock "0:00:16"]
[BlackClock "0:00:01"]
[Board "12"]

1. d4 {[%clk 0:03:00]}  Nf6 {[%clk 0:02:59]} 2. c4 {[%clk 0:03:01]}  e6 {[%clk 0:02:59]} 3. Nc3 {[%clk 0:03:01]}  Bb4 {[%clk 0:02:59]} 4. e3 {[%clk 0:03:01]}  O-O {[%clk 0:02:59]} 5. Bd2 {[%clk 0:03:01]}  d5 {[%clk 0:02:56]} 6. Nf3 {[%clk 0:02:58]}  b6 {[%clk 0:02:56]} 7. Rc1 {[%clk 0:02:58]}  Be7 {[%clk 0:02:43]} 8. cxd5 {[%clk 0:02:44]}  exd5 {[%clk 0:02:43]} 9. Bd3 {[%clk 0:02:40]}  Bb7 {[%clk 0:02:42]} 10. O-O {[%clk 0:02:38]}  c5 {[%clk 0:02:41]} 11. Ne5 {[%clk 0:02:35]}  Nc6 {[%clk 0:02:41]} 12. Ne2 {[%clk 0:02:26]}  Nxe5 {[%clk 0:02:01]} 13. dxe5 {[%clk 0:02:27]}  Nd7 {[%clk 0:01:58]} 14. f4 {[%clk 0:02:25]}  f5 {[%clk 0:01:51]} 15. g4 {[%clk 0:02:00]}  d4 {[%clk 0:01:25]} 16. Bxf5 {[%clk 0:01:50]}  Kh8 {[%clk 0:01:22]} 17. Ng3 {[%clk 0:01:35]}  Bh4 {[%clk 0:00:49]} 18. Be4 {[%clk 0:01:21]}  Bxg3 {[%clk 0:00:16]} 19. Bxb7 {[%clk 0:01:20]}  dxe3 {[%clk 0:00:16]} 20. Bxe3 {[%clk 0:01:13]}  Qh4 {[%clk 0:00:16]} 21. Qe2 {[%clk 0:00:49]}  Rab8 {[%clk 0:00:13]} 22. Bc6 {[%clk 0:00:49]}  Rbd8 {[%clk 0:00:05]} 23. hxg3 {[%clk 0:00:46]}  Qxg3+ {[%clk 0:00:06]} 24. Bg2 {[%clk 0:00:46]}  c4 {[%clk 0:00:04]} 25. e6 {[%clk 0:00:37]}  Nf6 {[%clk 0:00:04]} 26. Rf3 {[%clk 0:00:28]}  Qxg4 {[%clk 0:00:02]} 27. e7 {[%clk 0:00:28]}  Rfe8 {[%clk 0:00:02]} 28. exd8=Q {[%clk 0:00:29]}  Rxd8 {[%clk 0:00:02]} 29. Rxc4 {[%clk 0:00:23]}  Qh5 {[%clk 0:00:03]} 30. Rd4 {[%clk 0:00:23]}  Re8 {[%clk 0:00:03]} 31. Qf2 {[%clk 0:00:21]}  Ng4 {[%clk 0:00:03]} 32. Qg3 {[%clk 0:00:22]}  Nh6 {[%clk 0:00:02]} 33. Qg5 {[%clk 0:00:19]}  Qf7 {[%clk 0:00:03]} 34. Rd8 {[%clk 0:00:15]}  Ng8 {[%clk 0:00:02]} 35. Rxe8 {[%clk 0:00:15]}  Qxe8 {[%clk 0:00:02]} 36. Bd4 {[%clk 0:00:16]}  Qf7 {[%clk 0:00:02]} 37. Rg3 {[%clk 0:00:16]}  Nf6 {[%clk 0:00:01]} 38. Bxf6 {[%clk 0:00:16]}  gxf6 {[%clk 0:00:02]} 39. Qf5 {[%clk 0:00:16]}  Qe7 {[%clk 0:00:02]} 40. Qc8+ {[%clk 0:00:16]}  Qf8 {[%clk 0:00:01]} 41. Qxf8# {[%clk 0:00:16]} 1-0


[Site "https://www.chess.com"]